[Event "Titled Tuesday Blitz September 27 Late 2022"]
[White "Martin Duque, Jesus"]
[Black "Rustemov, Alexander"]
[WhiteFideId "2208954"]
[BlackFideId "4119002"]
[WhiteElo "2258"]
[BlackElo "2840"]
[Result "0-1"]
[Round "04"]
[TimeControl "180+1"]
[Date "2022.09.28"]
[WhiteClock "0:01:20"]
[BlackClock "0:00:56"]

1. Nf3 {[%clk 0:02:58]}  d5 {[%clk 0:02:59]} 2. b3 {[%clk 0:02:57]}  Nf6 {[%clk 0:02:58]} 3. Bb2 {[%clk 0:02:56]}  Bf5 {[%clk 0:02:58]} 4. g3 {[%clk 0:02:54]}  h6 {[%clk 0:02:58]} 5. Bg2 {[%clk 0:02:54]}  e6 {[%clk 0:02:59]} 6. d3 {[%clk 0:02:55]}  Be7 {[%clk 0:02:59]} 7. Nbd2 {[%clk 0:02:55]}  O-O {[%clk 0:02:59]} 8. O-O {[%clk 0:02:56]}  c5 {[%clk 0:02:56]} 9. Ne5 {[%clk 0:02:55]}  Bh7 {[%clk 0:02:54]} 10. e4 {[%clk 0:02:55]}  Nbd7 {[%clk 0:02:54]} 11. exd5 {[%clk 0:02:54]}  Nxd5 {[%clk 0:02:49]} 12. Re1 {[%clk 0:02:54]}  Nxe5 {[%clk 0:02:46]} 13. Bxe5 {[%clk 0:02:53]}  Rc8 {[%clk 0:02:38]} 14. Qg4 {[%clk 0:02:50]}  Bf6 {[%clk 0:02:32]} 15. Bxd5 {[%clk 0:02:43]}  exd5 {[%clk 0:02:28]} 16. Bxf6 {[%clk 0:02:33]}  Qxf6 {[%clk 0:02:29]} 17. Qe2 {[%clk 0:02:09]}  Qc3 {[%clk 0:02:23]} 18. Nf3 {[%clk 0:02:06]}  c4 {[%clk 0:02:22]} 19. dxc4 {[%clk 0:02:05]}  dxc4 {[%clk 0:02:21]} 20. Qd2 {[%clk 0:02:02]}  Qxd2 {[%clk 0:02:18]} 21. Nxd2 {[%clk 0:02:03]}  c3 {[%clk 0:02:16]} 22. Ne4 {[%clk 0:02:01]}  Rfd8 {[%clk 0:02:16]} 23. Re3 {[%clk 0:01:51]}  Bxe4 {[%clk 0:01:59]} 24. Rxe4 {[%clk 0:01:52]}  Rd2 {[%clk 0:01:59]} 25. Rc1 {[%clk 0:01:51]}  Rc7 {[%clk 0:01:51]} 26. a4 {[%clk 0:01:49]}  b6 {[%clk 0:01:50]} 27. Re5 {[%clk 0:01:41]}  g6 {[%clk 0:01:47]} 28. a5 {[%clk 0:01:41]}  Kg7 {[%clk 0:01:43]} 29. axb6 {[%clk 0:01:41]}  axb6 {[%clk 0:01:43]} 30. h4 {[%clk 0:01:41]}  h5 {[%clk 0:01:42]} 31. Kg2 {[%clk 0:01:40]}  Rc6 {[%clk 0:01:39]} 32. Rb5 {[%clk 0:01:40]}  Rf6 {[%clk 0:01:38]} 33. Kg1 {[%clk 0:01:32]}  Rfxf2 {[%clk 0:01:35]} 34. Rxb6 {[%clk 0:01:31]}  Rg2+ {[%clk 0:01:29]} 35. Kh1 {[%clk 0:01:30]}  Rh2+ {[%clk 0:01:29]} 36. Kg1 {[%clk 0:01:30]}  Rdg2+ {[%clk 0:01:29]} 37. Kf1 {[%clk 0:01:30]}  Rxg3 {[%clk 0:01:30]} 38. Rc6 {[%clk 0:01:26]}  Rxh4 {[%clk 0:01:06]} 39. Kf2 {[%clk 0:01:22]}  Rgh3 {[%clk 0:01:04]} 40. Kg2 {[%clk 0:01:19]}  Re3 {[%clk 0:00:57]} 41. Rf1 {[%clk 0:01:20]}  Re2+ {[%clk 0:00:55]} 42. Rf2 {[%clk 0:01:19]}  Rh2+ {[%clk 0:00:55]} 43. Kxh2 {[%clk 0:01:19]}  Rxf2+ {[%clk 0:00:56]} 44. Kg3 {[%clk 0:01:19]}  Rxc2 {[%clk 0:00:57]} 45. b4 {[%clk 0:01:19]}  Rb2 {[%clk 0:00:57]} 46. Rxc3 {[%clk 0:01:20]}  Rxb4 {[%clk 0:00:56]} 0-1


[Site "https://www.chess.com"]

[Event "Titled Tuesday Blitz September 27 Late 2022"]
[White "Martinez Alcantara, Jose Eduardo"]
[Black "Kravtsiv, Martyn"]
[WhiteFideId "3805662"]
[BlackFideId "14113147"]
[WhiteElo "2703"]
[BlackElo "2694"]
[Result "1-0"]
[Round "04"]
[TimeControl "180+1"]
[Date "2022.09.27"]
[WhiteClock "0:00:07"]
[BlackClock "0:00:01"]

1. e4 {[%clk 0:03:00]}  e5 {[%clk 0:03:00]} 2. Nf3 {[%clk 0:03:01]}  Nc6 {[%clk 0:03:00]} 3. Bb5 {[%clk 0:03:02]}  a6 {[%clk 0:03:00]} 4. Ba4 {[%clk 0:03:03]}  Nf6 {[%clk 0:03:00]} 5. O-O {[%clk 0:03:03]}  Be7 {[%clk 0:03:00]} 6. Re1 {[%clk 0:03:04]}  b5 {[%clk 0:03:00]} 7. Bb3 {[%clk 0:03:04]}  O-O {[%clk 0:03:00]} 8. a4 {[%clk 0:03:03]}  b4 {[%clk 0:02:59]} 9. d3 {[%clk 0:03:03]}  d6 {[%clk 0:02:59]} 10. Nbd2 {[%clk 0:03:02]}  Na5 {[%clk 0:02:59]} 11. Ba2 {[%clk 0:03:02]}  c5 {[%clk 0:02:55]} 12. Nc4 {[%clk 0:03:02]}  Be6 {[%clk 0:02:51]} 13. Bg5 {[%clk 0:02:57]}  Nc6 {[%clk 0:02:44]} 14. Bxf6 {[%clk 0:02:56]}  Bxf6 {[%clk 0:02:41]} 15. Ne3 {[%clk 0:02:55]}  g6 {[%clk 0:02:35]} 16. Bd5 {[%clk 0:02:53]}  Rc8 {[%clk 0:02:34]} 17. c3 {[%clk 0:02:50]}  Bg7 {[%clk 0:02:30]} 18. Bc4 {[%clk 0:02:47]}  a5 {[%clk 0:02:24]} 19. Qb3 {[%clk 0:02:47]}  Qd7 {[%clk 0:02:13]} 20. Ng5 {[%clk 0:02:41]}  Bxc4 {[%clk 0:02:12]} 21. Nxc4 {[%clk 0:02:42]}  Rb8 {[%clk 0:02:06]} 22. Qd1 {[%clk 0:02:37]}  h6 {[%clk 0:01:57]} 23. Nf3 {[%clk 0:02:37]}  d5 {[%clk 0:01:57]} 24. Ne3 {[%clk 0:02:32]}  bxc3 {[%clk 0:01:51]} 25. bxc3 {[%clk 0:02:31]}  d4 {[%clk 0:01:50]} 26. cxd4 {[%clk 0:02:28]}  exd4 {[%clk 0:01:45]} 27. Nc4 {[%clk 0:02:27]}  Rb4 {[%clk 0:01:43]} 28. h3 {[%clk 0:02:24]}  Rfb8 {[%clk 0:01:42]} 29. Rc1 {[%clk 0:02:20]}  h5 {[%clk 0:01:29]} 30. Qc2 {[%clk 0:02:03]}  Bh6 {[%clk 0:01:26]} 31. Rcd1 {[%clk 0:02:01]}  Rb3 {[%clk 0:01:23]} 32. Qe2 {[%clk 0:01:49]}  Qe6 {[%clk 0:01:09]} 33. Nfd2 {[%clk 0:01:25]}  R3b4 {[%clk 0:01:08]} 34. Ra1 {[%clk 0:01:25]}  Ne5 {[%clk 0:01:04]} 35. Nxe5 {[%clk 0:01:22]}  Qxe5 {[%clk 0:01:05]} 36. Nc4 {[%clk 0:01:22]}  Qc7 {[%clk 0:01:05]} 37. e5 {[%clk 0:01:22]}  Re8 {[%clk 0:01:03]} 38. Qe4 {[%clk 0:01:21]}  Bf8 {[%clk 0:00:58]} 39. f4 {[%clk 0:01:20]}  Qd7 {[%clk 0:00:51]} 40. Rf1 {[%clk 0:01:18]}  f5 {[%clk 0:00:43]} 41. Qf3 {[%clk 0:01:16]}  Re6 {[%clk 0:00:38]} 42. Qa8 {[%clk 0:01:05]}  Kf7 {[%clk 0:00:15]} 43. Nxa5 {[%clk 0:00:44]}  Re8 {[%clk 0:00:10]} 44. Qf3 {[%clk 0:00:41]}  Rxa4 {[%clk 0:00:09]} 45. Nc4 {[%clk 0:00:42]}  Re6 {[%clk 0:00:06]} 46. Rfb1 {[%clk 0:00:38]}  Rxa1 {[%clk 0:00:05]} 47. Rxa1 {[%clk 0:00:39]}  Be7 {[%clk 0:00:05]} 48. Rb1 {[%clk 0:00:38]}  Ra6 {[%clk 0:00:04]} 49. Rb7 {[%clk 0:00:35]}  Qe6 {[%clk 0:00:04]} 50. Kh2 {[%clk 0:00:35]}  Kf8 {[%clk 0:00:03]} 51. Rc7 {[%clk 0:00:34]}  Ra2 {[%clk 0:00:03]} 52. Rc6 {[%clk 0:00:31]}  Qf7 {[%clk 0:00:02]} 53. e6 {[%clk 0:00:31]}  Qf6 {[%clk 0:00:02]} 54. Ne5 {[%clk 0:00:31]}  Kg7 {[%clk 0:00:02]} 55. Nd7 {[%clk 0:00:30]}  Qh4 {[%clk 0:00:01]} 56. Nxc5 {[%clk 0:00:10]}  Rf2 {[%clk 0:00:01]} 57. Qg3 {[%clk 0:00:09]}  Qxf4 {[%clk 0:00:02]} 58. Qxf4 {[%clk 0:00:09]}  Rxf4 {[%clk 0:00:03]} 59. Nd7 {[%clk 0:00:07]}  Rf1 {[%clk 0:00:01]} 60. Nb6 {[%clk 0:00:07]}  Kf6 {[%clk 0:00:01]} 61. Nd5+ {[%clk 0:00:07]} 1-0


[Site "https://www.chess.com"]

[Event "Titled Tuesday Blitz September 27 Late 2022"]
[White "Melkumyan, Hrant"]
[Black "Koellner, Ruben Gideon"]
[WhiteFideId "13302485"]
[BlackFideId "12993093"]
[WhiteElo "2604"]
[BlackElo "2286"]
[Result "1-0"]
[Round "04"]
[TimeControl "180+1"]
[Date "2022.09.27"]
[WhiteClock "0:00:19"]
[BlackClock "0:00:04"]

1. e4 {[%clk 0:03:00]}  d6 {[%clk 0:03:00]} 2. d4 {[%clk 0:03:00]}  Nf6 {[%clk 0:03:00]} 3. Nc3 {[%clk 0:02:59]}  e5 {[%clk 0:03:00]} 4. Nf3 {[%clk 0:02:59]}  Nbd7 {[%clk 0:02:59]} 5. Bc4 {[%clk 0:02:59]}  Be7 {[%clk 0:02:59]} 6. O-O {[%clk 0:02:59]}  c6 {[%clk 0:02:59]} 7. a4 {[%clk 0:02:58]}  h6 {[%clk 0:02:59]} 8. Qe2 {[%clk 0:02:56]}  Qc7 {[%clk 0:03:00]} 9. Rd1 {[%clk 0:02:56]}  Nf8 {[%clk 0:03:00]} 10. a5 {[%clk 0:02:51]}  Ng6 {[%clk 0:02:58]} 11. d5 {[%clk 0:02:47]}  O-O {[%clk 0:02:58]} 12. Bb3 {[%clk 0:02:40]}  c5 {[%clk 0:02:44]} 13. a6 {[%clk 0:02:30]}  bxa6 {[%clk 0:02:26]} 14. Bc4 {[%clk 0:02:29]}  a5 {[%clk 0:02:08]} 15. Ra3 {[%clk 0:02:20]}  Bd8 {[%clk 0:02:05]} 16. Bd2 {[%clk 0:02:10]}  Qe7 {[%clk 0:02:00]} 17. Rda1 {[%clk 0:02:09]}  Nh5 {[%clk 0:01:33]} 18. g3 {[%clk 0:01:47]}  Bg4 {[%clk 0:01:33]} 19. Nd1 {[%clk 0:01:46]}  f5 {[%clk 0:01:31]} 20. Ne3 {[%clk 0:01:45]}  Nhf4 {[%clk 0:00:35]} 21. gxf4 {[%clk 0:01:44]}  Nxf4 {[%clk 0:00:35]} 22. Qd1 {[%clk 0:01:45]}  Bh5 {[%clk 0:00:14]} 23. Nxf5 {[%clk 0:01:41]}  Qf6 {[%clk 0:00:04]} 24. Bxf4 {[%clk 0:01:38]}  exf4 {[%clk 0:00:05]} 25. Kh1 {[%clk 0:01:29]}  g6 {[%clk 0:00:05]} 26. N5h4 {[%clk 0:01:24]}  g5 {[%clk 0:00:03]} 27. Ng2 {[%clk 0:01:15]}  Kh7 {[%clk 0:00:02]} 28. h3 {[%clk 0:01:00]}  Bg6 {[%clk 0:00:03]} 29. Bd3 {[%clk 0:00:58]}  Qg7 {[%clk 0:00:02]} 30. e5 {[%clk 0:00:54]}  dxe5 {[%clk 0:00:03]} 31. Bxg6+ {[%clk 0:00:54]}  Kxg6 {[%clk 0:00:03]} 32. Qd3+ {[%clk 0:00:53]}  Kf7 {[%clk 0:00:03]} 33. Qf5+ {[%clk 0:00:52]}  Bf6 {[%clk 0:00:04]} 34. Nxe5+ {[%clk 0:00:52]}  Kg8 {[%clk 0:00:04]} 35. Nd7 {[%clk 0:00:47]}  Bxb2 {[%clk 0:00:04]} 36. Nxf8 {[%clk 0:00:47]}  Bxa1 {[%clk 0:00:04]} 37. Ne6 {[%clk 0:00:45]}  Qf6 {[%clk 0:00:04]} 38. Qxf6 {[%clk 0:00:39]}  Bxf6 {[%clk 0:00:05]} 39. Rxa5 {[%clk 0:00:40]}  c4 {[%clk 0:00:05]} 40. d6 {[%clk 0:00:29]}  Kf7 {[%clk 0:00:04]} 41. Nc7 {[%clk 0:00:28]}  Rd8 {[%clk 0:00:05]} 42. Nb5 {[%clk 0:00:26]}  a6 {[%clk 0:00:04]} 43. Rxa6 {[%clk 0:00:26]}  Ke6 {[%clk 0:00:04]} 44. Ne1 {[%clk 0:00:24]}  Rb8 {[%clk 0:00:04]} 45. Nc7+ {[%clk 0:00:21]}  Kd7 {[%clk 0:00:04]} 46. Nd5 {[%clk 0:00:21]}  Bd4 {[%clk 0:00:04]} 47. Kg2 {[%clk 0:00:20]}  Rb1 {[%clk 0:00:04]} 48. Nf3 {[%clk 0:00:21]}  Rc1 {[%clk 0:00:04]} 49. Nxd4 {[%clk 0:00:21]}  Rd1 {[%clk 0:00:04]} 50. Nf6+ {[%clk 0:00:21]}  Kd8 {[%clk 0:00:04]} 51. Ra8# {[%clk 0:00:19]} 1-0


[Site "https://www.chess.com"]

[Event "Titled Tuesday Blitz September 27 Late 2022"]
[White "Mikhailov, Viacheslav"]
[Black "Gheorghiu, Calin"]
[WhiteFideId "4187369"]
[BlackFideId "1200305"]
[WhiteElo "2381"]
[BlackElo "2168"]
[Result "1-0"]
[Round "04"]
[TimeControl "180+1"]
[Date "2022.09.28"]
[WhiteClock "0:00:05"]
[BlackClock "0:00:05"]

1. Nf3 {[%clk 0:03:00]}  d5 {[%clk 0:02:57]} 2. g3 {[%clk 0:02:59]}  Nf6 {[%clk 0:02:50]} 3. Bg2 {[%clk 0:03:00]}  c6 {[%clk 0:02:44]} 4. O-O {[%clk 0:03:00]}  Bg4 {[%clk 0:02:43]} 5. c4 {[%clk 0:03:01]}  Nbd7 {[%clk 0:02:42]} 6. d4 {[%clk 0:03:00]}  e6 {[%clk 0:02:40]} 7. Nc3 {[%clk 0:03:01]}  Bd6 {[%clk 0:02:38]} 8. Qb3 {[%clk 0:03:01]}  Rb8 {[%clk 0:02:31]} 9. Rd1 {[%clk 0:03:01]}  O-O {[%clk 0:02:31]} 10. h3 {[%clk 0:02:58]}  Bh5 {[%clk 0:02:29]} 11. Bf4 {[%clk 0:02:47]}  Bxf4 {[%clk 0:02:07]} 12. gxf4 {[%clk 0:02:48]}  dxc4 {[%clk 0:02:04]} 13. Qxc4 {[%clk 0:02:47]}  Nd5 {[%clk 0:02:01]} 14. e3 {[%clk 0:02:46]}  Qf6 {[%clk 0:01:59]} 15. Ne4 {[%clk 0:02:43]}  Qg6 {[%clk 0:01:55]} 16. Ng3 {[%clk 0:02:43]}  N7f6 {[%clk 0:01:43]} 17. Ne5 {[%clk 0:02:40]}  Qh6 {[%clk 0:01:41]} 18. Re1 {[%clk 0:02:22]}  Rbc8 {[%clk 0:01:33]} 19. Qb3 {[%clk 0:02:21]}  Rc7 {[%clk 0:01:32]} 20. Rac1 {[%clk 0:02:19]}  Ne8 {[%clk 0:01:17]} 21. Qa3 {[%clk 0:01:51]}  f6 {[%clk 0:01:09]} 22. Ng4 {[%clk 0:01:47]}  Bxg4 {[%clk 0:01:02]} 23. hxg4 {[%clk 0:01:48]}  a6 {[%clk 0:00:59]} 24. f5 {[%clk 0:01:45]}  exf5 {[%clk 0:00:49]} 25. Bxd5+ {[%clk 0:01:44]}  cxd5 {[%clk 0:00:49]} 26. Rxc7 {[%clk 0:01:29]}  Nxc7 {[%clk 0:00:46]} 27. Qe7 {[%clk 0:01:23]}  Ne8 {[%clk 0:00:29]} 28. gxf5 {[%clk 0:01:13]}  Qh3 {[%clk 0:00:15]} 29. Qxb7 {[%clk 0:01:08]}  h5 {[%clk 0:00:15]} 30. Qxd5+ {[%clk 0:01:09]}  Kh8 {[%clk 0:00:15]} 31. Qh1 {[%clk 0:01:06]}  Qxh1+ {[%clk 0:00:13]} 32. Kxh1 {[%clk 0:01:07]}  Nd6 {[%clk 0:00:13]} 33. e4 {[%clk 0:00:56]}  h4 {[%clk 0:00:13]} 34. Nh5 {[%clk 0:00:49]}  Re8 {[%clk 0:00:12]} 35. f3 {[%clk 0:00:47]}  Nxf5 {[%clk 0:00:12]} 36. d5 {[%clk 0:00:47]}  Nd4 {[%clk 0:00:11]} 37. Kg2 {[%clk 0:00:43]}  Rc8 {[%clk 0:00:10]} 38. Rf1 {[%clk 0:00:29]}  Rc2+ {[%clk 0:00:09]} 39. Rf2 {[%clk 0:00:30]}  Rc1 {[%clk 0:00:06]} 40. Nf4 {[%clk 0:00:27]}  g5 {[%clk 0:00:04]} 41. Ne2 {[%clk 0:00:23]}  Rd1 {[%clk 0:00:01]} 42. Nxd4 {[%clk 0:00:22]}  Rxd4 {[%clk 0:00:02]} 43. Rc2 {[%clk 0:00:16]}  Kg7 {[%clk 0:00:03]} 44. a3 {[%clk 0:00:16]}  Kg6 {[%clk 0:00:03]} 45. b4 {[%clk 0:00:17]}  f5 {[%clk 0:00:03]} 46. Re2 {[%clk 0:00:13]}  g4 {[%clk 0:00:01]} 47. a4 {[%clk 0:00:08]}  h3+ {[%clk 0:00:02]} 48. Kg3 {[%clk 0:00:08]}  Kg5 {[%clk 0:00:02]} 49. f4+ {[%clk 0:00:08]}  Kg6 {[%clk 0:00:03]} 50. exf5+ {[%clk 0:00:07]}  Kxf5 {[%clk 0:00:04]} 51. Re5+ {[%clk 0:00:08]}  Kf6 {[%clk 0:00:05]} 52. Kxg4 {[%clk 0:00:08]}  h2 {[%clk 0:00:05]} 53. Rh5 {[%clk 0:00:09]}  Rd2 {[%clk 0:00:05]} 54. Rh6+ {[%clk 0:00:04]}  Kg7 {[%clk 0:00:06]} 55. Rh3 {[%clk 0:00:03]}  Kg6 {[%clk 0:00:06]} 56. f5+ {[%clk 0:00:03]}  Kf6 {[%clk 0:00:06]} 57. Rh6+ {[%clk 0:00:03]}  Ke5 {[%clk 0:00:06]} 58. b5 {[%clk 0:00:02]}  Kxd5 {[%clk 0:00:06]} 59. bxa6 {[%clk 0:00:02]}  Rg2+ {[%clk 0:00:07]} 60. Kf3 {[%clk 0:00:02]}  Ra2 {[%clk 0:00:07]} 61. a7 {[%clk 0:00:01]}  Rxa4 {[%clk 0:00:08]} 62. Rxh2 {[%clk 0:00:02]}  Rxa7 {[%clk 0:00:08]} 63. Kf4 {[%clk 0:00:03]}  Ra1 {[%clk 0:00:07]} 64. Rd2+ {[%clk 0:00:03]}  Kc6 {[%clk 0:00:08]} 65. Kg5 {[%clk 0:00:03]}  Rg1+ {[%clk 0:00:06]} 66. Kf6 {[%clk 0:00:03]}  Kc7 {[%clk 0:00:07]} 67. Kf7 {[%clk 0:00:03]}  Kc8 {[%clk 0:00:07]} 68. f6 {[%clk 0:00:04]}  Kc7 {[%clk 0:00:07]} 69. Kf8 {[%clk 0:00:04]}  Rf1 {[%clk 0:00:07]} 70. f7 {[%clk 0:00:04]}  Kc8 {[%clk 0:00:08]} 71. Rg2 {[%clk 0:00:04]}  Kd7 {[%clk 0:00:06]} 72. Kg8 {[%clk 0:00:05]}  Ke7 {[%clk 0:00:05]} 73. Re2+ {[%clk 0:00:05]} 1-0


[Site "https://www.chess.com"]

[Event "Titled Tuesday Blitz September 27 Late 2022"]
[White "Ozen, Bahadir"]
[Black "Petrosyan, Manuel"]
[WhiteFideId "6337058"]
[BlackFideId "13300857"]
[WhiteElo "2503"]
[BlackElo "2592"]
[Result "1/2-1/2"]
[Round "04"]
[TimeControl "180+1"]
[Date "2022.09.27"]
[WhiteClock "0:00:17"]
[BlackClock "0:00:05"]

1. g3 {[%clk 0:03:00]}  d5 {[%clk 0:02:57]} 2. Bg2 {[%clk 0:03:01]}  e5 {[%clk 0:02:57]} 3. d3 {[%clk 0:03:02]}  Nc6 {[%clk 0:02:56]} 4. a3 {[%clk 0:03:02]}  Be6 {[%clk 0:02:55]} 5. Nd2 {[%clk 0:03:01]}  Qd7 {[%clk 0:02:55]} 6. b4 {[%clk 0:03:01]}  a5 {[%clk 0:02:48]} 7. b5 {[%clk 0:03:01]}  Nce7 {[%clk 0:02:48]} 8. Bb2 {[%clk 0:03:00]}  Ng6 {[%clk 0:02:48]} 9. a4 {[%clk 0:02:52]}  Nf6 {[%clk 0:02:46]} 10. Ngf3 {[%clk 0:02:38]}  Bd6 {[%clk 0:02:43]} 11. Ng5 {[%clk 0:02:17]}  O-O {[%clk 0:02:08]} 12. Nxe6 {[%clk 0:02:16]}  Qxe6 {[%clk 0:02:09]} 13. e3 {[%clk 0:02:09]}  c6 {[%clk 0:02:06]} 14. O-O {[%clk 0:02:08]}  Rfd8 {[%clk 0:01:57]} 15. Qe2 {[%clk 0:02:05]}  h5 {[%clk 0:01:49]} 16. c4 {[%clk 0:01:59]}  h4 {[%clk 0:01:46]} 17. Rfd1 {[%clk 0:01:53]}  h3 {[%clk 0:01:45]} 18. Bh1 {[%clk 0:01:52]}  Bb4 {[%clk 0:01:38]} 19. Rac1 {[%clk 0:01:44]}  Rac8 {[%clk 0:01:35]} 20. Nb3 {[%clk 0:01:18]}  dxc4 {[%clk 0:01:13]} 21. dxc4 {[%clk 0:01:18]}  Rxd1+ {[%clk 0:01:13]} 22. Qxd1 {[%clk 0:01:14]}  cxb5 {[%clk 0:01:06]} 23. cxb5 {[%clk 0:01:14]}  Rxc1 {[%clk 0:01:06]} 24. Nxc1 {[%clk 0:01:14]}  e4 {[%clk 0:00:43]} 25. Bxf6 {[%clk 0:01:10]}  gxf6 {[%clk 0:00:44]} 26. Ne2 {[%clk 0:01:08]}  f5 {[%clk 0:00:30]} 27. Nd4 {[%clk 0:01:07]}  Qf6 {[%clk 0:00:16]} 28. Qh5 {[%clk 0:01:07]}  Bc5 {[%clk 0:00:14]} 29. Qxh3 {[%clk 0:00:42]}  Bxd4 {[%clk 0:00:14]} 30. exd4 {[%clk 0:00:43]}  Qxd4 {[%clk 0:00:10]} 31. Qxf5 {[%clk 0:00:43]}  e3 {[%clk 0:00:08]} 32. fxe3 {[%clk 0:00:41]}  Qxe3+ {[%clk 0:00:09]} 33. Qf2 {[%clk 0:00:41]}  Qc1+ {[%clk 0:00:08]} 34. Qf1 {[%clk 0:00:42]}  Qe3+ {[%clk 0:00:08]} 35. Qf2 {[%clk 0:00:42]}  Qc1+ {[%clk 0:00:08]} 36. Kg2 {[%clk 0:00:28]}  Qc4 {[%clk 0:00:09]} 37. Qb6 {[%clk 0:00:16]}  Qe4+ {[%clk 0:00:03]} 38. Kg1 {[%clk 0:00:15]}  Qe1+ {[%clk 0:00:04]} 39. Kg2 {[%clk 0:00:16]}  Qe4+ {[%clk 0:00:04]} 40. Kg1 {[%clk 0:00:16]}  Qe1+ {[%clk 0:00:04]} 41. Kg2 {[%clk 0:00:17]}  Qe4+ {[%clk 0:00:05]} 1/2-1/2


[Site "https://www.chess.com"]

[Event "Titled Tuesday Blitz September 27 Late 2022"]
[White "Papasimakopoulos, Alexandros"]
[Black "Aggelis, Nikolaos"]
[WhiteFideId "4244125"]
[BlackFideId "4213220"]
[WhiteElo "2357"]
[BlackElo "2154"]
[Result "1-0"]
[Round "04"]
[TimeControl "180+1"]
[Date "2022.09.28"]
[WhiteClock "0:00:07"]
[BlackClock "0:00:05"]

1. d4 {[%clk 0:03:00]}  d5 {[%clk 0:02:51]} 2. c4 {[%clk 0:03:00]}  c6 {[%clk 0:02:51]} 3. cxd5 {[%clk 0:03:00]}  cxd5 {[%clk 0:02:52]} 4. Bf4 {[%clk 0:03:01]}  Nc6 {[%clk 0:02:51]} 5. e3 {[%clk 0:03:01]}  Nf6 {[%clk 0:02:51]} 6. Nc3 {[%clk 0:03:00]}  Bg4 {[%clk 0:02:38]} 7. Qb3 {[%clk 0:02:59]}  Na5 {[%clk 0:02:38]} 8. Qa4+ {[%clk 0:03:00]}  Bd7 {[%clk 0:02:35]} 9. Qc2 {[%clk 0:03:00]}  e6 {[%clk 0:02:30]} 10. Nf3 {[%clk 0:03:00]}  Rc8 {[%clk 0:02:24]} 11. h3 {[%clk 0:02:59]}  Bb4 {[%clk 0:02:24]} 12. Bd3 {[%clk 0:02:59]}  O-O {[%clk 0:02:13]} 13. O-O {[%clk 0:02:59]}  a6 {[%clk 0:02:09]} 14. Ne5 {[%clk 0:02:53]}  Bb5 {[%clk 0:02:03]} 15. Bxb5 {[%clk 0:02:39]}  axb5 {[%clk 0:02:04]} 16. Bg5 {[%clk 0:02:28]}  Bxc3 {[%clk 0:01:31]} 17. bxc3 {[%clk 0:02:26]}  b4 {[%clk 0:01:32]} 18. Ng4 {[%clk 0:02:15]}  Rxc3 {[%clk 0:01:26]} 19. Qe2 {[%clk 0:02:14]}  Nc4 {[%clk 0:01:06]} 20. Nxf6+ {[%clk 0:01:59]}  gxf6 {[%clk 0:01:06]} 21. Bh6 {[%clk 0:02:00]}  f5 {[%clk 0:01:05]} 22. Bxf8 {[%clk 0:01:52]}  Qxf8 {[%clk 0:01:03]} 23. Rfc1 {[%clk 0:01:52]}  b5 {[%clk 0:01:00]} 24. Rab1 {[%clk 0:01:42]}  Rxc1+ {[%clk 0:00:53]} 25. Rxc1 {[%clk 0:01:42]}  Qa8 {[%clk 0:00:54]} 26. Rb1 {[%clk 0:01:36]}  Qa3 {[%clk 0:00:52]} 27. Qc2 {[%clk 0:01:35]}  Kg7 {[%clk 0:00:50]} 28. Qb3 {[%clk 0:01:33]}  Qa6 {[%clk 0:00:49]} 29. Qxb4 {[%clk 0:01:32]}  Qxa2 {[%clk 0:00:49]} 30. Qxb5 {[%clk 0:01:32]}  Nd6 {[%clk 0:00:47]} 31. Qb2 {[%clk 0:01:28]}  Qa8 {[%clk 0:00:40]} 32. Qb8 {[%clk 0:01:28]}  Qa2 {[%clk 0:00:37]} 33. Rc1 {[%clk 0:01:20]}  Ne4 {[%clk 0:00:34]} 34. Qe5+ {[%clk 0:01:18]}  Kg6 {[%clk 0:00:33]} 35. Qf4 {[%clk 0:01:15]}  Qe2 {[%clk 0:00:31]} 36. g4 {[%clk 0:01:11]}  fxg4 {[%clk 0:00:29]} 37. Qxg4+ {[%clk 0:01:10]}  Qxg4+ {[%clk 0:00:29]} 38. hxg4 {[%clk 0:01:11]}  h5 {[%clk 0:00:29]} 39. gxh5+ {[%clk 0:01:06]}  Kxh5 {[%clk 0:00:30]} 40. f3 {[%clk 0:01:05]}  Ng5 {[%clk 0:00:28]} 41. Kg2 {[%clk 0:01:04]}  Kg6 {[%clk 0:00:26]} 42. Kg3 {[%clk 0:01:04]}  Kf5 {[%clk 0:00:20]} 43. Rc7 {[%clk 0:01:02]}  f6 {[%clk 0:00:20]} 44. Rd7 {[%clk 0:00:59]}  Kg6 {[%clk 0:00:17]} 45. Kg4 {[%clk 0:00:59]}  Nf7 {[%clk 0:00:15]} 46. Re7 {[%clk 0:00:47]}  Ng5 {[%clk 0:00:13]} 47. f4 {[%clk 0:00:38]}  f5+ {[%clk 0:00:12]} 48. Kh4 {[%clk 0:00:33]}  Nf3+ {[%clk 0:00:09]} 49. Kg3 {[%clk 0:00:33]}  Kf6 {[%clk 0:00:08]} 50. Re8 {[%clk 0:00:16]}  Nd2 {[%clk 0:00:08]} 51. Ra8 {[%clk 0:00:15]}  Ne4+ {[%clk 0:00:09]} 52. Kh4 {[%clk 0:00:14]}  Kg6 {[%clk 0:00:08]} 53. Rg8+ {[%clk 0:00:12]}  Kf7 {[%clk 0:00:08]} 54. Rg2 {[%clk 0:00:12]}  Kf6 {[%clk 0:00:08]} 55. Kh5 {[%clk 0:00:13]}  Nd6 {[%clk 0:00:08]} 56. Rg6+ {[%clk 0:00:12]}  Kf7 {[%clk 0:00:08]} 57. Kh6 {[%clk 0:00:11]}  Nc4 {[%clk 0:00:09]} 58. Rg7+ {[%clk 0:00:11]}  Kf6 {[%clk 0:00:09]} 59. Rg3 {[%clk 0:00:11]}  Kf7 {[%clk 0:00:08]} 60. Kh7 {[%clk 0:00:12]}  Nd6 {[%clk 0:00:06]} 61. Rg7+ {[%clk 0:00:11]}  Kf6 {[%clk 0:00:06]} 62. Kg8 {[%clk 0:00:10]}  Nc4 {[%clk 0:00:06]} 63. Rg3 {[%clk 0:00:09]}  Nd6 {[%clk 0:00:06]} 64. Kf8 {[%clk 0:00:09]}  Nc4 {[%clk 0:00:05]} 65. Ke8 {[%clk 0:00:09]}  Nd6+ {[%clk 0:00:03]} 66. Kd7 {[%clk 0:00:09]}  Nc4 {[%clk 0:00:04]} 67. Rh3 {[%clk 0:00:09]}  Nd2 {[%clk 0:00:04]} 68. Rh6+ {[%clk 0:00:09]}  Kf7 {[%clk 0:00:05]} 69. Rxe6 {[%clk 0:00:08]}  Nc4 {[%clk 0:00:06]} 70. Re5 {[%clk 0:00:08]}  Kf6 {[%clk 0:00:05]} 71. Kc6 {[%clk 0:00:07]}  Kg6 {[%clk 0:00:04]} 72. Kxd5 {[%clk 0:00:07]}  Nb6+ {[%clk 0:00:05]} 73. Ke6 {[%clk 0:00:07]}  Nc4 {[%clk 0:00:05]} 74. d5 {[%clk 0:00:07]} 1-0


[Site "https://www.chess.com"]